fUSD/lending_fUSD_20260406
["ID","MTS","AMOUNT","RATE_DAILY","PERIOD"]
[419893272,1775481039450,-1074.47541218,0.00011598,2]
[419893273,1775481039462,-1074.47541218,0.00011598,2]
[419893274,1775481039471,-1074.47541218,0.00011598,2]
[419893275,1775481039481,-1074.47541218,0.00011598,2]
[419893276,1775481039492,-1074.47541218,0.00011598,2]
[419893277,1775481039503,-1074.47541218,0.00011598,2]
[419893278,1775481039513,-1074.47541218,0.00011598,2]
[419893279,1775481039523,-1074.47541218,0.00011598,2]
[419893280,1775481039532,-1074.47541218,0.00011598,2]
[419893281,1775481039542,-361.89379544,0.00011598,2]
[419893282,1775481039552,-3384.31495691,0.00011598,2]
[419893283,1775481039561,-3384.31495691,0.00011598,2]
[419893284,1775481039570,-3384.31495691,0.00011598,2]
[419893285,1775481039580,-3384.31495691,0.00011598,2]
[419893286,1775481039590,-3384.31495691,0.00011598,2]
[419893287,1775481039599,-3384.31495691,0.00011598,2]
[419893288,1775481039608,-3384.31495691,0.00011598,2]
[419893289,1775481039617,-3384.31495691,0.00011598,2]
[419893290,1775481039626,-3384.31495691,0.00011598,2]
[419893291,1775481039636,-3384.31495691,0.00011598,2]
[419893292,1775481039645,-3384.31495691,0.00011598,2]
[419893293,1775481039654,-3384.31495691,0.00011598,2]
[419893294,1775481039663,-3384.31495691,0.00011598,2]
[419893295,1775481039672,-3384.31495691,0.00011598,2]
[419893296,1775481039681,-3384.31495691,0.00011598,2]
[419893297,1775481039691,-3384.31495691,0.00011598,2]
[419893300,1775481040207,-3384.31495691,0.00011598,2]
[419893301,1775481040217,-3384.31495691,0.00011598,2]
[419893302,1775481040227,-3384.31495691,0.00011598,2]
[419893303,1775481040237,-3384.31495691,0.00011598,2]
[419893304,1775481040247,-3384.31495691,0.00011598,2]
[419893305,1775481040256,-3384.31495691,0.00011598,2]
[419893306,1775481040266,-3384.31495691,0.00011598,2]
[419893307,1775481040275,-3384.31495691,0.00011598,2]
[419893308,1775481040285,-3384.31495691,0.00011598,2]
[419893309,1775481040295,-3384.31495691,0.00011598,2]
[419893310,1775481040304,-3384.31495691,0.00011598,2]
[419893311,1775481040314,-3384.31495691,0.00011598,2]
[419893312,1775481040323,-3384.31495684,0.00011598,2]
[419893313,1775481040333,-1149106.1132879,0.00011599,2]
[419893314,1775481040372,-16392.42,0.00011599,2]
[419893315,1775481040396,-65999.99999995,0.00011599,2]
[419893316,1775481040793,-268501.46671215,0.00011599,2]
[419893317,1775481040804,-4151.2258,0.000116,2]
[419893318,1775481040814,-98674.7795,0.000116,2]
[419893319,1775481040825,-195.0,0.00011605,2]
[419893320,1775481040835,-195.0,0.00011605,2]
[419893321,1775481040845,-195.0,0.00011605,2]
[419893322,1775481040854,-250.0,0.00011605,2]
[419893323,1775481040864,-4012.1343,0.00011622,2]
[419893325,1775481040873,-2500.0,0.00011622,2]
[419893327,1775481040883,-12606.27244327,0.00011622,2]
[419893329,1775481040893,-600.0,0.0001166,2]
[419893331,1775481040903,-600.0,0.0001166,2]
[419893333,1775481040913,-600.0,0.0001166,2]
[419893335,1775481040922,-600.0,0.0001166,2]
[419893337,1775481040932,-250.0,0.0001166,2]
[419893339,1775481040941,-28562.67032287,0.00011699,2]
[419893341,1775481040950,-195.0,0.000117,2]
[419893343,1775481040959,-195.0,0.000117,2]
[419893345,1775481040968,-600.0,0.000117,2]
[419893347,1775481040978,-250.0,0.000117,2]
[419893349,1775481040987,-700.0,0.000117,4]
[419893351,1775481040996,-500.0,0.00011715,2]
[419893353,1775481041005,-500.0,0.00011715,2]
[419893355,1775481041014,-500.0,0.00011715,2]
[419893357,1775481041023,-500.0,0.00011715,2]
[419893359,1775481041033,-500.0,0.00011715,2]
[419893361,1775481041042,-500.0,0.00011715,2]
[419893363,1775481041051,-500.0,0.00011715,2]
[419893364,1775481041061,-500.0,0.00011715,2]
[419893366,1775481041070,-500.0,0.00011715,2]
[419893369,1775481041080,-500.0,0.00011715,2]
[419893371,1775481041091,-500.0,0.00011715,2]
[419893372,1775481041100,-500.0,0.00011715,2]
[419893374,1775481041110,-200.0,0.00011715,2]
[419893376,1775481041120,-500.0,0.00011715,2]
[419893378,1775481041131,-151.0,0.00011715,2]
[419893380,1775481041141,-151.0,0.00011715,2]
[419893382,1775481041150,-222.29236238,0.00011715,2]
[419893384,1775481041160,-151.0,0.00011715,2]
[419893386,1775481041169,-151.0,0.00011715,2]
[419893389,1775481041180,-500.0,0.00011715,2]
[419893390,1775481041189,-151.0,0.00011715,2]
[419893392,1775481041199,-500.0,0.00011715,2]
[419893394,1775481041208,-151.0,0.00011715,2]
[419893396,1775481041218,-500.0,0.00011715,2]
[419893398,1775481041227,-151.0,0.00011715,2]
[419893401,1775481041237,-151.0,0.00011715,2]
[419893402,1775481041247,-500.0,0.00011715,2]
[419893405,1775481041256,-151.0,0.00011715,2]
[419893407,1775481041266,-151.0,0.00011715,2]
[419893409,1775481041275,-500.0,0.00011715,2]
[419893411,1775481041285,-151.0,0.00011715,2]
[419893412,1775481041295,-500.0,0.00011715,2]
[419893415,1775481041307,-151.0,0.00011715,2]
[419893417,1775481041316,-500.0,0.00011715,2]
[419893419,1775481041326,-151.0,0.00011715,2]
[419893420,1775481041336,-500.0,0.00011715,2]
[419893423,1775481041346,-151.0,0.00011715,2]
[419893424,1775481041356,-500.0,0.00011715,2]
[419893426,1775481041365,-151.0,0.00011715,2]
[419893428,1775481041375,-500.0,0.00011715,2]
[419893431,1775481041387,-151.0,0.00011715,2]
[419893433,1775481041397,-500.0,0.00011715,2]
[419893435,1775481041408,-151.0,0.00011715,2]
[419893436,1775481041418,-500.0,0.00011715,2]
[419893437,1775481041427,-151.0,0.00011715,2]
[419893438,1775481041436,-151.0,0.00011715,2]
[419893439,1775481041446,-151.0,0.00011715,2]
[419893440,1775481041455,-151.0,0.00011715,2]
[419893441,1775481041464,-151.0,0.00011715,2]
[419893442,1775481041473,-151.0,0.00011715,2]
[419893443,1775481041483,-151.0,0.00011715,2]
[419893444,1775481041492,-151.0,0.00011715,2]
[419893445,1775481041502,-151.0,0.00011715,2]
[419893446,1775481041512,-151.0,0.00011715,2]
[419893447,1775481041521,-151.0,0.00011715,2]
[419893448,1775481041530,-151.0,0.00011715,2]
[419893449,1775481041540,-151.0,0.00011715,2]
[419893450,1775481041550,-151.0,0.00011715,2]
[419893451,1775481041560,-151.0,0.00011715,2]
[419893452,1775481041569,-1337.30371513,0.00011715,2]
[419893453,1775481041579,-151.0,0.00011715,2]
[419893454,1775481041588,-2380.87221871,0.00011722,2]
[419893455,1775481041598,-234405.7271,0.00011722,2]
[419893456,1775481041607,-500.95520336,0.00011773,2]
[419893457,1775481041617,-500.0,0.00011773,2]
[419893458,1775481041627,-500.68172956,0.00011773,2]
[419893459,1775481041636,-500.0,0.00011773,2]
[419893460,1775481041645,-444.60188993,0.00011773,2]
[419893461,1775481041655,-1395.65,0.00011781,2]
[419893462,1775481041664,-1924.0899,0.00011781,2]
[419893463,1775481041674,-150.0,0.000118,2]
[419893464,1775481041684,-1500.0,0.000118,4]
[419893465,1775481041693,-151.0,0.00011819,2]
[419893466,1775481041703,-151.0,0.00011819,2]
[419893467,1775481041713,-155.0,0.0001182,2]
[419893468,1775481041722,-151.0,0.00011822,2]
[419893469,1775481041732,-153.544953,0.00011822,2]
[419893470,1775481041741,-420.0,0.00011832,2]
[419893471,1775481041751,-420.0,0.00011833,2]
[419893472,1775481041760,-1680.0,0.00011842,2]
[419893473,1775481041770,-500.0,0.00011847,2]
[419893474,1775481041780,-2300.0,0.000119,4]
[419893475,1775481041790,-19552.24412745,0.00011969,2]
[419893476,1775481041799,-5491.6129,0.00011997,2]
[419893477,1775481041809,-12606.2724432,0.00012064,2]
[419893478,1775481041819,-33035.6402,0.00012089,2]
[419893479,1775481041828,-1000.0,0.00012089,2]
[419893480,1775481041838,-500.0,0.00012121,2]
[419893481,1775481041848,-500.0,0.00012121,2]
[419893482,1775481041857,-204.26825693,0.00012121,2]
[419893483,1775481041867,-1000.0,0.00012121,2]
[419893484,1775481041876,-1000.0,0.00012121,2]
[419893485,1775481041886,-1000.0,0.00012121,2]
[419893486,1775481041896,-2421.4770643,0.00012133,2]
[419893487,1775481041905,-153.2664619,0.00012195,2]
[419893488,1775481041915,-226587.5636936,0.00012195,2]
[419893489,1775481041925,-151.0,0.00012195,2]
[419893490,1775481041935,-151.0,0.00012195,2]
[419893491,1775481041945,-7661.5248298,0.00012195,2]
[419893492,1775481041954,-151.0,0.00012195,2]
[419893493,1775481041964,-151.0,0.00012195,2]
[419893494,1775481041974,-151.0,0.00012195,2]
[419893495,1775481041983,-200.0,0.00012263,2]
[419893496,1775481041993,-629.47078978,0.00012263,2]
[419893497,1775481042003,-164.46,0.00012291,2]
[419893498,1775481042013,-425.26403064,0.000123,2]
[419893499,1775481042023,-1600.0,0.00012301,2]
[419893500,1775481042032,-152.0,0.00012378,3]
[419893501,1775481042042,-500.0,0.00012395,2]
[419893502,1775481042052,-150.0,0.000124,2]
[419893503,1775481042062,-255.0,0.00012409,2]
[419893504,1775481042071,-19552.24412745,0.00012432,2]
[419893505,1775481042081,-444.60188992,0.00012461,2]
[419893506,1775481042091,-12606.2724432,0.00012506,2]
[419893507,1775481042100,-578.20924308,0.00012522,2]
[419893508,1775481042110,-500.0,0.00012522,2]
[419893509,1775481042121,-1377.42282659,0.00012522,2]
[419893510,1775481042131,-500.0,0.00012522,2]
[419893511,1775481042140,-695.39793187,0.00012522,2]
[419893512,1775481042150,-3283.41717271,0.00012522,2]
[419893513,1775481042160,-200.0,0.00012522,2]
[419893514,1775481042170,-500.0,0.00012522,2]
[419893515,1775481042179,-500.0,0.00012522,2]
[419893516,1775481042189,-500.0,0.00012522,2]
[419893517,1775481042199,-500.0,0.00012522,2]
[419893518,1775481042208,-500.0,0.00012522,2]
[419893519,1775481042219,-500.0,0.00012522,2]
[419893520,1775481042229,-500.0,0.00012522,2]
[419893521,1775481042238,-500.0,0.00012522,2]
[419893522,1775481042248,-500.0,0.00012522,2]
[419893523,1775481042257,-500.0,0.00012522,2]
[419893524,1775481042267,-500.0,0.00012522,2]
[419893525,1775481042277,-1119.55358363,0.00012522,2]
[419893526,1775481042287,-743.50770149,0.00012522,2]
[419893527,1775481042297,-3000.0,0.00012522,2]
[419893528,1775481042307,-3000.0,0.00012522,2]
[419893529,1775481042317,-3000.0,0.00012522,2]
[419893530,1775481042326,-3000.0,0.00012522,2]
[419893531,1775481042336,-3000.0,0.00012522,2]
[419893533,1775481042346,-174.61919141,0.00012522,2]
[419893536,1775481042356,-1627.46733313,0.00012522,2]
[419893539,1775481042366,-151.0,0.00012522,2]
[419893542,1775481042376,-359.56877178,0.00012522,2]
[419893544,1775481042386,-500.0,0.00012577,2]
[419893545,1775481042395,-151.0,0.00012577,2]
[419893546,1775481042405,-1000.0,0.0001259,2]
[419893547,1775481042414,-500.0,0.00012632,2]
[419893548,1775481042425,-151.0,0.00012632,2]
[419893549,1775481042434,-1500.0,0.00012668,2]
[419893550,1775481042444,-659.22316949,0.00012668,2]
[419893551,1775481042454,-1500.0,0.00012668,2]
[419893552,1775481042463,-500.0,0.00012668,2]
[419893553,1775481042473,-500.0,0.00012687,2]
[419893554,1775481042482,-151.0,0.00012687,2]
[419893555,1775481042491,-1000.0,0.00012694,2]
[419893556,1775481042501,-160.0,0.00012739,2]
[419893557,1775481042510,-330.408558,0.00012739,2]
[419893558,1775481042520,-500.817116,0.00012739,2]
[419893559,1775481042531,-166.303449,0.0001274,2]
[419893560,1775481042541,-160.0,0.0001274,2]
[419893561,1775481042551,-396.521583,0.0001274,2]
[419893562,1775481042561,-633.043167,0.0001274,2]
[419893563,1775481042571,-500.0,0.00012742,2]
[419893564,1775481042580,-151.0,0.00012742,2]
[419893565,1775481042591,-2421.4770643,0.00012761,2]
[419893566,1775481042601,-385.388686,0.00012767,2]
[419893567,1775481042611,-500.0,0.00012797,2]
[419893568,1775481042623,-370.289411,0.00012808,2]
[419893569,1775481042633,-200.0,0.00012811,2]
[419893570,1775481042644,-399.585053,0.00012832,2]
[419893571,1775481042653,-500.0,0.00012852,2]
[419893572,1775481042663,-19552.24412745,0.00012896,2]
[419893573,1775481042673,-500.0,0.00012907,2]
[419893574,1775481042682,-152.0,0.0001292,4]
[419893576,1775481042692,-258.0,0.00012937,2]
[419893577,1775481042702,-634.23081963,0.00012942,2]
[419893578,1775481042712,-173.29325799,0.00012947,2]
[419893579,1775481042933,-500.0,0.00012947,2]
[419893580,1775481042943,-500.0,0.00012947,2]
[419893581,1775481042953,-500.0,0.00012947,2]
[419893582,1775481042962,-500.0,0.00012947,2]
[419893583,1775481042972,-223.31091229,0.00012947,2]
[419893584,1775481042983,-500.0,0.00012947,2]
[419893585,1775481042992,-174.44031738,0.00012947,2]
[419893586,1775481043002,-500.0,0.00012947,2]
[419893587,1775481043012,-500.0,0.00012947,2]
[419893588,1775481043021,-500.0,0.00012947,2]
[419893589,1775481043032,-397.54871154,0.00012947,2]
[419893590,1775481043042,-500.0,0.00012947,2]
[419893591,1775481043052,-500.0,0.00012947,2]
[419893592,1775481043061,-12606.2724432,0.00012948,2]
[419893593,1775481043071,-500.0,0.00012962,2]
[419893594,1775481043081,-1000.0,0.00012965,2]
[419893595,1775481043091,-150.14780011,0.00012995,2]
[419893596,1775481043100,-150.0,0.00012995,2]
[419893597,1775481043110,-150.0,0.00012995,2]
[419893598,1775481043121,-150.0,0.00012995,2]
[419893599,1775481043131,-150.17701417,0.00012995,2]
[419893600,1775481043141,-150.0,0.00012995,2]
[419893601,1775481043151,-150.0,0.00012995,2]
[419893602,1775481043161,-150.0,0.00012995,2]
[419893603,1775481043171,-150.0,0.00012995,2]
[419893604,1775481043181,-150.0,0.00012995,2]
[419893605,1775481043190,-150.0,0.00012995,2]
[419893606,1775481043200,-150.0,0.00012995,2]
[419893608,1775481043209,-150.0,0.00012995,2]
[419893609,1775481043219,-150.0,0.00012995,2]
[419893610,1775481043229,-19510.05969791,0.00012999,2]
[419893611,1775481043238,-5988.33653102,0.00013,7]
[419893612,1775481043248,-155.0,0.00013002,2]
[419893613,1775481043258,-587.0,0.00013006,2]
[419893614,1775481043267,-500.0,0.00013017,2]
[419893615,1775481043277,-2351.0,0.00013027,2]
[419893616,1775481043286,-3693.0,0.00013027,2]
[419893617,1775481043296,-150.0,0.00013027,2]
[419893618,1775481043306,-1913.0,0.00013034,5]
[419893619,1775481043315,-1521.0,0.00013034,5]
[419893620,1775481043325,-150.0,0.00013046,2]
[419893621,1775481043335,-150.0,0.0001305,2]
[419893622,1775481043345,-3693.0,0.00013053,2]
[419893623,1775481043354,-150.0,0.0001306,2]
[419893624,1775481043365,-150.0,0.00013063,2]
[419893625,1775481043375,-150.0,0.00013067,2]
[419893626,1775481043385,-150.0,0.00013067,2]
[419893627,1775481043395,-1428.38747117,0.0001307,2]
[419893628,1775481043404,-200.0,0.0001307,2]
[419893629,1775481043414,-181.08010149,0.0001307,2]
[419893630,1775481043424,-500.0,0.00013072,2]
[419893631,1775481043434,-150.0,0.00013093,2]
[419893632,1775481043444,-3693.0,0.00013094,2]
[419893633,1775481043454,-150.0,0.00013098,2]
[419893634,1775481043464,-167.5139,0.000131,2]
[419893635,1775481043474,-500.0,0.000131,2]
[419893636,1775481043484,-150.0,0.00013106,2]
[419893637,1775481043494,-150.0,0.00013115,2]
[419893638,1775481043504,-150.0,0.00013115,2]
[419893639,1775481043513,-4558.796,0.00013115,2]
[419893640,1775481043523,-227.116,0.00013115,2]
[419893641,1775481043533,-150.0,0.00013126,2]
[419893642,1775481043543,-500.0,0.00013127,2]
[419893643,1775481043553,-150.0,0.00013132,2]
[419893644,1775481043563,-258.0,0.00013136,2]
[419893645,1775481043573,-150.0,0.00013139,2]
[419893646,1775481043583,-150.0,0.00013139,2]
[419893647,1775481043594,-347.65580151,0.00013139,2]
[419893648,1775481043604,-3000.0,0.00013143,2]
[419893649,1775481043614,-1600.0,0.00013143,2]
[419893650,1775481043624,-169.0,0.00013145,2]
[419893651,1775481043635,-444.60188992,0.00013149,2]
[419893652,1775481043645,-150.0,0.00013149,2]
[419893653,1775481043655,-150.0,0.00013159,2]
[419893654,1775481043666,-150.0,0.00013161,2]
[419893655,1775481043676,-150.0,0.00013175,2]
[419893656,1775481043686,-150.0,0.00013191,2]
[419893657,1775481043695,-150.0,0.00013201,2]
[419893658,1775481043705,-150.0,0.00013201,2]
[419893659,1775481043715,-150.0,0.00013211,2]
[419893660,1775481043725,-150.0,0.00013211,2]
[419893661,1775481043734,-500.0,0.00013216,2]
[419893662,1775481043744,-1500.0,0.00013216,2]
[419893663,1775481043754,-150.0,0.00013217,2]
[419893664,1775481043764,-150.0,0.00013224,2]
[419893665,1775481043775,-164.46,0.00013228,2]
[419893666,1775481043785,-150.0,0.00013235,2]
[419893667,1775481043795,-150.0,0.00013235,2]
[419893668,1775481043805,-154.6173872,0.0001325,2]
[419893669,1775481043815,-150.0,0.00013252,2]
[419893670,1775481043825,-150.0,0.00013257,2]
[419893671,1775481043835,-150.0,0.00013257,2]
[419893672,1775481043845,-150.0,0.0001327,2]
[419893673,1775481043855,-150.0,0.00013272,2]
[419893674,1775481043865,-172.7,0.00013273,2]
[419893675,1775481043875,-350.0,0.00013274,3]
[419893676,1775481043885,-258.0,0.00013281,2]
[419893677,1775481043895,-150.0,0.00013283,2]
[419893678,1775481043905,-150.0,0.00013283,2]
[419893679,1775481043915,-150.0,0.0001329,2]
[419893680,1775481043925,-296.36,0.00013294,2]
[419893681,1775481043935,-150.0,0.00013304,2]
[419893682,1775481043945,-150.0,0.00013323,2]
[419893683,1775481043955,-150.0,0.00013328,2]
[419893684,1775481043965,-150.0,0.00013338,2]
[419893685,1775481043975,-350.0,0.00013342,2]
[419893686,1775481043986,-150.0,0.00013355,2]
[419893687,1775481043996,-150.0,0.00013355,2]
[419893688,1775481044006,-150.0,0.00013355,2]
[419893689,1775481044016,-150.0,0.00013355,2]
[419893690,1775481044027,-150.0,0.00013355,2]
[419893691,1775481044038,-150.0,0.00013355,2]
[419893692,1775481044049,-150.0,0.00013355,2]
[419893693,1775481044061,-150.0,0.00013355,2]
[419893694,1775481044073,-200.0,0.00013359,2]
[419893695,1775481044083,-19552.24412745,0.0001336,2]
[419893696,1775481044094,-258.0,0.0001336,2]
[419893697,1775481044104,-1000.0,0.00013364,2]
[419893698,1775481044114,-350.0,0.00013369,2]
[419893699,1775481044124,-350.0,0.00013375,2]
[419893700,1775481044134,-450.557124,0.00013376,2]
[419893701,1775481044145,-540.71125,0.00013377,2]
[419893702,1775481044154,-500.0,0.00013381,2]
[419893703,1775481044164,-500.0,0.00013381,2]
[419893704,1775481044174,-500.0,0.00013381,2]
[419893705,1775481044183,-500.0,0.00013381,2]
[419893706,1775481044192,-500.0,0.00013381,2]
[419893707,1775481044202,-500.0,0.00013381,2]
[419893708,1775481044212,-500.0,0.00013381,2]
[419893709,1775481044221,-500.0,0.00013381,2]
[419893710,1775481044231,-500.0,0.00013381,2]
[419893711,1775481044240,-489.0,0.00013381,2]
[419893712,1775481044249,-150.0,0.00013383,2]
[419893713,1775481044259,-150.0,0.00013388,2]
[419893714,1775481044268,-2421.4770643,0.00013389,2]
[419893715,1775481044278,-12606.2724432,0.0001339,2]
[419893716,1775481044288,-3718.0,0.000134,2]
[419893717,1775481044297,-175.176675,0.00013405,2]
[419893718,1775481044308,-150.0,0.00013407,2]
[419893719,1775481044317,-150.0,0.00013407,2]
[419893720,1775481044326,-150.0,0.00013421,2]
[419893721,1775481044336,-2114.47417512,0.00013425,2]
[419893722,1775481044347,-150.0,0.00013428,2]
[419893723,1775481044356,-150.0,0.00013428,2]
[419893724,1775481044365,-1000.0,0.00013428,2]
[419893725,1775481044779,-223.68835758,0.0001343,2]
[419893726,1775481044789,-150.0,0.00013439,2]
[419893727,1775481044799,-168.313369,0.00013449,2]
[419893728,1775481044810,-1000.0,0.00013449,2]
[419893729,1775481044819,-1000.0,0.0001345,2]
[419893730,1775481044829,-300.0,0.00013453,2]
[419893731,1775481044839,-300.0,0.00013453,2]
[419893732,1775481044849,-300.0,0.00013453,2]
[419893733,1775481044858,-300.0,0.00013453,2]
[419893734,1775481044868,-300.0,0.00013453,2]
[419893735,1775481044879,-300.0,0.00013453,2]
[419893736,1775481044889,-300.0,0.00013453,2]
[419893737,1775481044898,-300.0,0.00013453,2]
[419893738,1775481044909,-342.0,0.00013453,2]
[419893739,1775481044919,-150.0,0.00013454,2]
[419893740,1775481044929,-160.0,0.00013454,2]
[419893741,1775481044939,-150.0,0.00013459,2]
[419893742,1775481044949,-152.0,0.00013461,5]
[419893743,1775481044959,-152.2797526,0.00013466,2]
[419893744,1775481044970,-1000.0,0.00013471,2]
[419893745,1775481044981,-1000.0,0.00013471,2]
[419893746,1775481044993,-1000.0,0.00013471,2]
[419893747,1775481045004,-1000.0,0.00013472,2]
[419893748,1775481045015,-181.629569,0.00013473,2]
[419893749,1775481045025,-150.0,0.00013476,2]
[419893750,1775481045034,-150.0,0.00013476,2]
[419893751,1775481045045,-150.0,0.00013476,2]
[419893752,1775481045055,-150.0,0.00013476,2]
[419893753,1775481045064,-150.0,0.00013476,2]
[419893754,1775481045074,-1000.0,0.0001348,2]
[419893755,1775481045084,-172.7,0.00013486,2]
[419893756,1775481045095,-150.0,0.00013487,2]
[419893757,1775481045105,-1000.0,0.00013487,2]
[419893758,1775481045115,-1000.0,0.00013488,2]
[419893759,1775481045126,-150.0,0.00013494,2]
[419893760,1775481045136,-150.0,0.000135,2]
[419893761,1775481045145,-150.0,0.000135,2]
[419893762,1775481045157,-200.0,0.000135,2]
[419893763,1775481045166,-306.0,0.000135,2]
[419893764,1775481045176,-2000.0,0.000135,2]
[419893765,1775481045188,-313.0,0.000135,2]
[419893766,1775481045199,-583.0,0.00013507,2]
[419893767,1775481045210,-258.0,0.00013507,2]
[419893768,1775481045221,-150.0,0.0001351,2]
[419893769,1775481045231,-150.0,0.00013515,2]
[419893770,1775481045241,-150.0,0.0001352,2]
[419893771,1775481045250,-1119.93558461,0.00013522,2]
[419893772,1775481045260,-150.0,0.00013536,2]
[419893773,1775481045271,-1000.0,0.00013537,2]
[419893774,1775481045281,-150.0,0.00013545,2]
[419893775,1775481045291,-1000.0,0.00013549,2]
[419893776,1775481045301,-150.0,0.0001355,2]
[419893777,1775481045311,-397.76952178,0.00013551,2]
[419893778,1775481045321,-150.0,0.00013552,2]
[419893779,1775481045332,-1000.0,0.00013557,2]
[419893780,1775481045341,-150.0,0.00013562,2]
[419893781,1775481045352,-1000.0,0.00013564,2]
[419893782,1775481045362,-150.0,0.00013565,2]
[419893783,1775481045371,-433.0,0.00013567,2]
[419893784,1775481045382,-9317.72896724,0.0001357,2]
[419893785,1775481045391,-160.0,0.00013572,2]
[419893786,1775481045400,-150.0,0.00013572,2]
[419893787,1775481045411,-150.0,0.00013572,2]
[419893788,1775481045421,-1000.0,0.00013573,2]
[419893789,1775481045431,-1000.0,0.00013575,2]
[419893790,1775481045441,-150.0,0.00013585,2]
[419893791,1775481045452,-6021.0,0.00013589,2]
[419893792,1775481045464,-2471.0,0.00013589,2]
[419893793,1775481045473,-200.0,0.00013589,2]
[419893794,1775481045484,-150.0,0.00013595,2]
[419893795,1775481045493,-5818.33073566,0.00013596,2]
[419893796,1775481045503,-150.0,0.00013596,2]
[419893797,1775481045513,-150.0,0.00013596,2]
[419893798,1775481045523,-150.0,0.00013597,2]
[419893799,1775481045533,-1000.0,0.00013603,2]
[419893800,1775481045543,-1000.0,0.00013604,2]
[419893801,1775481045553,-150.0,0.00013605,2]
[419893802,1775481045562,-1000.0,0.00013606,2]
[419893803,1775481045572,-150.0,0.00013613,2]
[419893804,1775481045582,-150.0,0.00013613,2]
[419893805,1775481045592,-1481.23780761,0.00013618,2]
[419893806,1775481045601,-200.0,0.00013618,2]
[419893807,1775481045611,-187.78006525,0.00013618,2]
[419893808,1775481045620,-150.0,0.00013618,2]
[419893809,1775481045631,-350.0,0.00013619,2]
[419893810,1775481045643,-1000.0,0.0001364,2]
[419893811,1775481045652,-150.0,0.00013644,2]
[419893812,1775481045662,-150.0,0.00013644,2]
[419893813,1775481045671,-258.0,0.00013648,2]
[419893814,1775481045682,-1000.0,0.0001365,2]
[419893815,1775481045692,-150.0,0.00013651,2]
[419893816,1775481045702,-296.36,0.00013657,2]
[419893817,1775481045715,-150.0,0.00013661,2]
[419893818,1775481045725,-150.0,0.00013665,2]
[419893819,1775481045734,-1600.0,0.00013668,2]
[419893820,1775481045745,-1000.0,0.00013672,2]
[419893821,1775481045756,-1000.0,0.0001368,2]
[419893822,1775481045767,-150.0,0.00013682,2]
[419893823,1775481045779,-150.0,0.00013684,2]
[419893824,1775481045789,-1000.0,0.00013688,2]
[419893825,1775481045798,-1000.0,0.00013693,2]
[419893826,1775481045808,-194.24971248,0.00013696,2]
[419893827,1775481045817,-151.0,0.00013696,2]
[419893828,1775481045826,-151.0,0.00013696,2]
[419893829,1775481045836,-151.0,0.00013696,2]
[419893830,1775481045846,-500.0,0.00013698,2]
[419893831,1775481045856,-500.0,0.00013698,2]
[419893832,1775481045866,-500.0,0.00013698,2]
[419893833,1775481045876,-500.0,0.00013698,2]
[419893834,1775481045886,-500.0,0.00013698,2]
[419893835,1775481045895,-597.32595487,0.00013698,2]
[419893836,1775481045905,-500.0,0.00013698,2]
[419893837,1775481045915,-500.0,0.00013698,2]
[419893838,1775481045924,-1000.0,0.00013698,2]
[419893839,1775481045933,-500.0,0.00013699,2]